bitfinex-derivatives/quotes_ETHF0:USTF0_20250910
["timestamp","ask_amount","ask_price","bid_price","bid_amount"]
[1757545621905,0.41352,4351.7,4351.6,33.081]
[1757545622198,0.71422,4351.7,4351.6,36.33994998]
[1757545623196,0.3007,4351.7,4351.6,36.10894998]
[1757545623397,0.3007,4351.7,4351.6,36.33994998]
[1757545625909,0.3007,4351.7,4351.6,36.52659091]
[1757545627405,0.3322,4352.5,4352.4,0.4314]
[1757545627601,0.74565,4352.5,4352.4,0.6624]
[1757545628109,0.95775,4352.5,4352.4,0.6624]
[1757545629206,1.25845,4352.5,4352.4,0.6624]
[1757545639222,1.25845,4352.5,4352.4,0.4476]
[1757545639418,1.25845,4352.5,4352.4,0.231]
[1757545646323,1.25845,4352.5,4352.4,0.4476]
[1757545651031,1.25845,4352.5,4352.4,0.231]
[1757545658444,1.25845,4352.5,4352.4,0.435]
[1757545659342,1.25845,4352.5,4352.4,0.231]
[1757545670554,1.25845,4352.5,4352.4,0.435]
[1757545673657,1.25845,4352.5,4352.4,0.231]
[1757545674158,0.819,4352.1,4352.0,0.204]
[1757545674346,1.1252,4352.1,4352.0,0.435]
[1757545674552,1.1252,4352.1,4352.0,3.57215857]
[1757545675254,1.1252,4352.1,4352.0,3.75389925]
[1757545682259,0.7117,4352.1,4352.0,3.75389925]
[1757545682558,0.92599,4352.1,4352.0,3.94709925]
[1757545683762,0.92599,4352.1,4352.0,3.75389925]
[1757545684161,0.92599,4352.1,4352.0,3.57215857]
[1757545684762,0.92599,4352.1,4352.0,3.76535857]
[1757545686666,0.5125,4352.1,4352.0,3.76535857]
[1757545686867,0.5125,4352.1,4352.0,4.17885857]
[1757545687168,0.92599,4352.1,4352.0,3.76535857]
[1757545687867,0.92599,4352.1,4352.0,3.94845663]
[1757545688268,0.71969,4352.1,4352.0,3.94845663]
[1757545689170,0.3062,4352.1,4352.0,4.36195663]
[1757545689556,0.71969,4352.1,4352.0,3.94845663]
[1757545690265,1.13559,4352.1,4352.0,3.75525663]
[1757545691670,1.13559,4352.1,4352.0,3.94845663]
[1757545692669,0.7221,4352.1,4352.0,3.94845663]
[1757545692968,0.92989,4352.1,4352.0,3.94845663]
[1757545693472,0.1218,4352.5,4352.4,0.4123]
[1757545693674,0.4159,4352.9,4352.8,0.4123]
[1757545693864,0.4159,4352.9,4352.8,0.9463]
[1757545694066,0.4159,4352.9,4352.8,0.6433]
[1757545694376,0.82931,4352.9,4352.8,0.4371]
[1757545695468,1.13071,4352.9,4352.8,0.4371]
[1757545699388,1.13077,4352.3,4352.2,0.89489669]
[1757545699582,1.13077,4352.3,4352.2,1.12589669]
[1757545699782,1.13077,4352.3,4352.2,4.04763185]
[1757545703690,0.41347,4352.3,4352.2,3.74463185]
[1757545703883,0.41347,4352.3,4352.2,4.04763185]
[1757545704790,0.3014,4352.5,4352.3,0.303]
[1757545704990,0.71485,4352.5,4352.4,0.7153]
[1757545705289,0.71485,4352.5,4352.4,3.66618252]
[1757545705789,0.92505,4352.5,4352.4,3.66618252]
[1757545709095,0.92505,4352.5,4352.4,3.89718252]
[1757545709592,0.71485,4352.5,4352.4,3.89718252]
[1757545709798,0.41345,4352.5,4352.4,3.89718252]
[1757545713797,0.4199,4353.3,4353.2,0.4201]
[1757545714001,1.03325,4354.1,4353.3,0.3201]
[1757545714197,0.41335,4353.6,4353.5,0.863]
[1757545714504,0.41335,4353.6,4353.5,1.094]
[1757545715002,0.63055,4353.6,4353.5,1.094]
[1757545716593,0.41335,4353.6,4353.5,1.094]
[1757545717000,0.41335,4353.6,4353.5,4.1461606]
[1757545719105,0.63055,4353.6,4353.5,4.1461606]
[1757545722199,0.41335,4353.6,4353.5,4.1461606]
[1757545736223,1.13325,4353.6,4353.5,0.863]
[1757545736410,1.13325,4353.6,4353.5,0.9702]
[1757545736612,1.13329,4353.1,4353.0,0.5357]
[1757545736911,1.13329,4353.1,4353.0,0.7657]
[1757545737120,0.83329,4353.1,4353.0,1.0902]
[1757545737523,0.41339,4353.1,4353.0,1.0902]
[1757545739523,0.61549,4353.1,4353.0,1.0902]
[1757545739720,1.13059,4353.1,4353.0,1.0902]
[1757545741820,0.4185,4353.1,4353.0,1.0902]
[1757545742424,0.41339,4353.2,4353.0,0.7701]
[1757545742620,0.5008,4354.0,4353.9,0.2039]
[1757545742819,0.2021,4354.0,4353.9,0.9344]
[1757545743829,0.61541,4354.0,4353.9,0.9344]
[1757545749039,0.41331,4354.0,4353.9,0.9344]
[1757545749342,0.4133,4354.2,4354.1,0.7044]
[1757545749733,0.4133,4354.2,4354.1,3.653549]
[1757545749933,0.0711,4356.0,4354.1,3.653549]
[1757545750131,1.13035,4355.6,4355.5,0.2039]
[1757545750337,1.13035,4355.6,4355.5,0.9344]
[1757545751043,1.03268,4356.6,4355.5,7.91283668]
[1757545751346,0.70486,4356.6,4356.5,0.331]
[1757545751541,0.70486,4356.6,4356.5,0.3581]
[1757545751748,0.70486,4356.6,4356.5,0.231]
[1757545751950,0.70488,4356.4,4356.3,0.3031]
[1757545752338,1.44593,4356.0,4355.8,0.231]
[1757545752641,0.2918,4355.9,4355.8,0.231]
[1757545752841,0.2918,4355.9,4355.8,0.5341]
[1757545753144,0.383,4355.9,4355.8,0.5341]
[1757545753839,0.41316,4355.5,4355.4,0.3031]
[1757545754042,0.79616,4355.5,4355.4,0.5341]
[1757545754238,0.70496,4355.5,4355.4,0.738]
[1757545756144,0.79616,4355.5,4355.4,0.5341]
[1757545756950,0.79616,4355.5,4355.4,0.738]
[1757545757740,0.79616,4355.5,4355.4,0.231]
[1757545757947,0.79616,4355.5,4355.4,0.5341]
[1757545758141,0.79616,4355.5,4355.4,0.738]
[1757545758348,0.70496,4355.5,4355.4,0.738]
[1757545759252,0.55906,4355.5,4355.4,0.738]
[1757545760448,0.70496,4355.5,4355.4,0.738]
[1757545760749,0.79616,4355.5,4355.4,0.738]
[1757545761051,0.79616,4355.5,4355.4,0.5341]
[1757545761251,0.70496,4355.5,4355.4,0.738]
[1757545762957,0.41316,4355.5,4355.4,0.9354]
[1757545763756,0.55906,4355.5,4355.4,0.9354]
[1757545765058,0.41316,4355.5,4355.4,0.9354]
[1757545765254,0.2918,4356.1,4356.0,0.331]
[1757545765555,0.2918,4356.1,4356.0,1.0625]
[1757545770552,0.2918,4356.1,4356.0,0.8315]
[1757545770746,0.2918,4356.1,4356.0,1.0625]
[1757545773559,0.70491,4356.1,4356.0,1.0625]
[1757545775058,0.55901,4356.1,4356.0,1.0625]
[1757545775660,0.41311,4356.1,4356.0,1.0625]
[1757545777257,0.55831,4356.1,4356.0,1.0625]
[1757545778357,0.70351,4356.1,4356.0,1.0625]
[1757545779860,0.79421,4356.1,4356.0,1.0625]
[1757545780049,0.70351,4356.1,4356.0,1.0625]
[1757545783562,0.79421,4356.1,4356.0,0.8651]
[1757545784362,0.70355,4355.6,4355.5,0.6455]
[1757545784556,0.70355,4355.6,4355.5,1.0739]
[1757545790364,0.70355,4355.6,4355.5,0.4408]
[1757545790558,0.79425,4355.6,4355.5,0.6718]
[1757545790762,0.79425,4355.6,4355.5,0.5447]
[1757545790963,0.79425,4355.6,4355.5,0.8763]
[1757545791856,0.70355,4355.6,4355.5,0.8763]
[1757545792065,0.70355,4355.6,4355.5,0.6453]
[1757545792260,0.70355,4355.6,4355.5,0.8763]
[1757545792467,0.70355,4355.6,4355.5,1.0737]
[1757545797665,0.55835,4355.6,4355.5,1.0737]
[1757545800271,0.41315,4355.6,4355.5,1.0737]
[1757545801469,1.0328,4356.0,4355.5,4.76]
[1757545801666,0.4131,4356.2,4356.0,0.4263]
[1757545801866,0.4131,4356.2,4356.1,0.7223]
[1757545805168,0.6245,4356.2,4356.1,0.7223]
[1757545808475,0.9399,4356.2,4356.1,0.7223]
[1757545809376,1.1554,4356.2,4356.1,0.7223]
[1757545814679,0.62455,4355.6,4355.5,0.8492]
[1757545814884,0.41315,4355.6,4355.5,0.8492]
[1757545815073,0.41315,4355.6,4355.5,1.0802]
[1757545815384,1.15545,4355.6,4355.5,0.8492]
[1757545817790,1.15545,4355.6,4355.5,0.7223]
[1757545818894,0.93995,4355.6,4355.5,0.841]
[1757545820291,1.15545,4355.6,4355.5,0.841]
[1757545821793,1.15545,4355.6,4355.5,0.7223]
[1757545824792,1.15545,4355.6,4355.5,0.5249]
[1757545824991,1.15545,4355.6,4353.0,33.1183]
[1757545824992,1.0333,4354.0,4353.0,33.1183]
[1757545825296,1.15562,4353.9,4353.8,0.2173]
[1757545825483,1.03338,4353.6,4353.1,3.1936948]
[1757545825688,0.7423,4353.3,4353.2,0.8754]
[1757545825997,0.3154,4353.3,4353.2,0.6457]
[1757545826295,0.3154,4353.3,4353.2,0.87541]
[1757545826698,0.5268,4353.3,4353.2,0.6457]
[1757545826896,0.5268,4353.3,4353.2,0.957]
[1757545828195,0.41336,4353.4,4353.2,0.957]
[1757545828396,0.41336,4353.4,4353.3,0.3113]
[1757545828594,0.41336,4353.4,4353.3,0.7249]
[1757545829694,0.94826,4353.4,4353.3,0.7249]
[1757545830801,1.14786,4353.4,4353.3,0.4136]
[1757545831692,1.14786,4353.4,4353.3,0.2062]
[1757545832096,1.14786,4353.4,4353.3,0.4372]
[1757545833599,1.14786,4353.4,4353.3,0.6446]
[1757545833904,1.14786,4353.4,4353.3,0.9559]
[1757545837204,1.14786,4353.4,4353.3,0.6446]
[1757545837905,0.73419,4353.1,4353.0,33.059]
[1757545838103,0.73419,4353.1,4353.0,33.29]
[1757545840910,0.73419,4353.1,4352.5,0.3113]
[1757545841204,1.14794,4352.6,4352.5,0.4136]
[1757545841408,1.14794,4352.6,4352.5,0.6076]
[1757545841708,1.14794,4352.6,4352.5,0.4002]
[1757545841913,0.41353,4351.6,4351.5,0.8436]
[1757545842202,0.41353,4351.6,4351.5,1.0746]
[1757545842410,0.73433,4351.6,4351.5,0.9559]
[1757545842605,0.41353,4351.6,4351.5,1.0746]
[1757545846806,0.73433,4351.6,4351.5,0.9559]
[1757545847205,0.73433,4351.6,4351.5,0.7249]
[1757545847413,0.73433,4351.6,4351.5,0.9559]
[1757545852412,0.41353,4351.6,4351.5,1.0746]
[1757545852613,0.73433,4351.6,4351.5,0.9559]
[1757545854916,0.94843,4351.6,4351.5,0.9559]
[1757545855407,0.41353,4351.6,4351.5,0.9559]
[1757545856106,0.73433,4351.6,4351.5,0.9559]
[1757545856519,0.94843,4351.6,4351.5,0.9559]
[1757545856714,0.73433,4351.6,4351.5,0.9559]
[1757545857215,0.41353,4351.6,4351.5,0.9559]
[1757545857616,0.73223,4351.6,4351.5,0.9559]
[1757545857811,0.1212,4352.0,4351.5,0.9559]
[1757545858019,0.4135,4352.0,4351.9,0.7361]
[1757545858215,0.4135,4352.0,4351.9,0.9671]
[1757545858617,0.3187,4352.3,4352.0,0.3116]
[1757545858820,0.73217,4352.3,4352.2,0.7361]
[1757545859920,0.5245,4352.8,4352.7,0.4245]
[1757545860120,0.5245,4352.8,4352.7,0.9671]
[1757545861021,0.93792,4352.8,4352.7,0.9671]
[1757545861520,1.13972,4352.8,4352.7,0.6555]
[1757545862919,1.13972,4352.8,4352.7,0.4398]
[1757545868720,1.13972,4352.8,4352.7,0.231]
[1757545870220,1.13983,4351.6,4351.5,0.2088]
[1757545870424,0.73228,4351.1,4351.0,2.30837502]
[1757545870620,0.73228,4351.1,4351.0,0.9671]
[1757545870826,0.93808,4351.1,4351.0,3.89446919]
[1757545873127,0.73228,4351.1,4351.0,3.89446919]
[1757545874325,0.93808,4351.1,4351.0,3.89446919]
[1757545875017,0.73228,4351.1,4351.0,3.89446919]
[1757545876930,1.13988,4351.1,4351.0,3.66346919]
[1757545877131,1.13988,4351.1,4351.0,3.58286919]
[1757545878930,1.13988,4351.1,4351.0,0.4245]
[1757545879233,1.13988,4351.1,4351.0,0.6555]
[1757545879834,1.13988,4351.1,4351.0,0.9671]
[1757545880326,1.13988,4351.1,4351.0,0.6555]
[1757545881932,1.13988,4351.1,4351.0,0.9671]
[1757545882428,0.41358,4351.1,4351.0,0.9671]
[1757545882626,0.2058,4351.5,4351.4,0.4245]
[1757545882826,0.5245,4351.5,4351.4,0.6555]
[1757545883027,0.6515,4351.5,4351.4,0.6555]
[1757545883231,0.6515,4351.5,4351.4,0.9671]
[1757545884934,0.8533,4351.5,4351.4,0.6555]
[1757545885628,0.8533,4351.5,4351.4,0.9671]
[1757545890543,1.26684,4351.5,4351.4,0.9671]
[1757545892247,0.41353,4351.6,4351.5,1.12384]
[1757545892451,0.41352,4351.8,4351.7,0.7103]
[1757545892748,0.5479,4352.5,4352.4,0.2007]
[1757545892952,0.861,4352.5,4352.4,0.4317]
[1757545893157,0.861,4352.5,4352.4,0.231]
[1757545896447,0.216,4351.4,4351.3,0.5122]
[1757545896653,0.734,4351.4,4351.3,0.4317]
[1757545896855,0.734,4351.4,4351.3,3.42447904]
[1757545897256,0.734,4351.4,4351.3,3.93407904]
[1757545898148,0.734,4351.4,4351.3,3.62257904]
[1757545899647,0.734,4351.4,4351.3,0.2007]
[1757545899952,0.734,4351.4,4351.3,0.4317]
[1757545901153,1.14755,4351.4,4351.3,0.4317]
[1757545904055,1.14755,4351.4,4351.3,0.9413]
[1757545905859,1.14755,4351.4,4351.3,0.6298]
[1757545908959,1.14755,4351.4,4351.3,0.9413]
[1757545909164,1.14755,4351.4,4351.3,0.6298]
[1757545909460,1.14755,4351.4,4351.3,0.4317]
[1757545913165,1.14755,4351.4,4351.3,0.6298]
[1757545913368,1.14755,4351.4,4351.3,0.9413]
[1757545913968,1.14755,4351.4,4351.3,0.6298]
[1757545916766,1.14755,4351.4,4351.3,0.4317]
[1757545916966,1.14755,4351.4,4351.3,0.231]
[1757545927171,1.14755,4351.4,4351.3,0.4471]
[1757545927679,1.14755,4351.4,4351.3,0.231]
[1757545931084,1.24769,4351.0,4350.9,0.3991514]
[1757545931380,1.24769,4351.0,4350.9,3.43873877]
[1757545932478,1.24769,4351.0,4350.9,3.65423877]
[1757545934884,1.24769,4351.0,4350.9,3.95803877]
[1757545937480,1.24769,4351.0,4350.8,33.073]
[1757545937481,0.7179,4350.9,4350.8,33.073]
[1757545937690,0.629,4350.0,4349.9,4.86514204]
[1757545937883,0.3043,4350.0,4349.9,5.09614204]
[1757545938084,0.3043,4350.0,4349.9,9.83720142]
[1757545938285,0.3043,4350.0,4349.9,5.70745938]
[1757545938888,0.5016,4350.0,4349.9,5.70745938]
[1757545943987,0.8341,4350.0,4349.9,5.70745938]
[1757545944581,0.629,4350.0,4349.9,5.70745938]
[1757545950085,0.8341,4350.0,4349.9,5.70745938]
[1757545950594,0.8341,4350.0,4349.9,3.88929652]
[1757545954394,0.8341,4350.0,4349.9,3.58549652]
[1757545955885,0.8341,4350.0,4349.9,3.88749652]
[1757545956186,0.8341,4350.0,4349.9,0.231]
[1757545956897,0.2963,4349.8,4349.6,0.302]
[1757545957197,0.4952,4349.8,4349.7,0.9465]
[1757545961493,0.6957,4349.8,4349.7,0.9465]
[1757545962499,0.6957,4349.8,4349.7,0.7155]
[1757545962699,0.6957,4349.8,4349.7,0.9465]
[1757545963199,0.32221481,4349.8,4349.7,0.9465]
[1757545965302,0.61851481,4349.8,4349.7,0.9465]
[1757545967897,1.03222481,4349.8,4349.7,0.9465]
[1757545969804,0.61851481,4349.8,4349.7,0.9465]
[1757545970007,0.61851481,4349.8,4349.7,0.7155]
[1757545970204,0.61851481,4349.8,4349.7,1.36021]
[1757545970405,0.61851481,4349.8,4349.7,1.12921]
[1757545970606,0.61851481,4349.8,4349.7,1.36021]
[1757545973107,0.41801481,4349.8,4349.7,1.36021]
[1757545973307,0.41366,4350.3,4350.0,0.3408]
[1757545973508,0.1989,4350.1,4350.0,0.5381]
[1757545973711,0.1989,4350.1,4350.0,0.7691]
[1757545974102,0.1989,4350.1,4350.0,1.0711]
[1757545974512,0.61258,4350.1,4350.0,1.0711]
[1757545974714,0.1989,4350.1,4350.0,1.0711]
[1757545978908,0.61258,4350.1,4350.0,1.0711]
[1757545980309,0.81008,4350.1,4350.0,1.0711]
[1757545980612,1.01688,4350.1,4350.0,1.0711]
[1757545980808,0.81008,4350.1,4350.0,1.0711]
[1757545981311,1.01688,4350.1,4350.0,1.0711]
[1757545981714,0.81008,4350.1,4350.0,1.0711]
[1757545984222,1.01688,4350.1,4350.0,0.4266]
[1757545984516,1.03482,4349.6,4349.5,0.6373]
[1757545984715,1.03482,4349.6,4349.5,0.8683]
[1757545985417,1.03482,4349.6,4349.5,0.6373]
[1757545985613,1.03482,4349.6,4349.5,0.5307]
[1757545985917,1.03482,4349.6,4349.5,0.231]
[1757545986420,1.03482,4349.6,4349.5,0.5307]
[1757545986718,5.03482,4349.6,4349.5,0.231]
[1757545986916,0.2068,4349.5,4349.4,33.3867]
[1757545987117,0.2068,4349.5,4349.4,33.318]
[1757545987514,0.2068,4349.5,4349.4,33.6177]
[1757545987917,0.82807,4349.1,4349.0,0.3592]
[1757545988220,1.03487,4349.1,4349.0,0.5307]
[1757545989130,0.6211,4348.6,4348.5,0.2863]
[1757545989324,0.6211,4348.6,4348.5,0.3043]
[1757545989823,0.6211,4348.6,4348.5,0.604]
[1757545990421,0.6211,4348.6,4348.5,0.817]
[1757545991131,0.6211,4348.6,4348.5,0.373]
[1757545991430,0.2168,4348.6,4348.5,1.0175]
[1757545994025,0.2068,4349.5,4348.6,0.7132]
[1757545994226,0.4143,4349.7,4349.6,0.7132]
[1757545994632,0.82801,4349.7,4349.6,0.7132]
[1757545996137,1.03481,4349.7,4349.6,0.2997]
[1757545996331,1.03481,4349.7,4349.5,0.231]
[1757545996332,0.6211,4349.7,4349.5,0.231]
[1757545996532,0.0795,4350.0,4349.3,0.231]
[1757545996736,0.4143,4349.4,4349.3,0.231]
[1757545997038,0.6211,4349.4,4349.3,0.5307]
[1757545997538,0.4143,4349.1,4348.7,0.2997]
[1757545997728,0.4143,4348.9,4348.8,0.7437]
[1757545998032,0.2168,4348.9,4348.8,0.9442]
[1757545998635,0.4143,4349.4,4349.3,0.5127]
[1757545998831,0.4143,4349.4,4349.3,0.7132]
[1757545999026,0.6211,4350.0,4349.9,0.213]
[1757545999228,0.6211,4350.0,4349.9,0.5127]
[1757545999534,0.6211,4350.0,4349.9,0.2997]
[1757546000136,4.4938,4350.0,4349.6,0.2997]
[1757546000433,0.2068,4349.6,4349.1,0.2997]
[1757546000640,0.6211,4349.2,4349.1,0.2997]
[1757546000834,0.6211,4349.2,4349.1,0.5127]
[1757546001232,0.6211,4349.2,4349.1,0.7132]
[1757546001233,0.4143,4349.2,4349.1,0.7132]
[1757546001836,0.6211,4349.2,4349.1,0.2997]
[1757546003139,0.6211,4349.2,4349.1,0.5127]
[1757546005038,0.6211,4349.2,4349.1,0.2997]
[1757546005243,0.4143,4349.2,4349.1,0.5127]
[1757546005437,0.4143,4349.2,4349.1,0.7132]
[1757546006041,0.6211,4349.2,4349.1,0.2997]
[1757546007432,0.4143,4349.2,4348.6,0.5367]
[1757546007632,0.0795,4350.0,4348.6,0.5367]
[1757546007633,0.6117,4348.7,4348.6,0.743]
[1757546008744,0.6117,4348.7,4348.6,0.512]
[1757546010339,0.4052,4348.7,4348.6,0.7216]
[1757546011544,0.1974,4348.7,4348.6,0.7216]
[1757546011746,0.2065,4349.3,4348.7,0.3057]
[1757546012544,0.1974,4349.3,4349.2,0.7216]
[1757546012744,0.4052,4349.9,4349.8,0.512]
[1757546012941,0.4052,4349.9,4349.8,0.7216]
[1757546015249,0.6117,4349.9,4349.8,0.3057]
[1757546015746,0.6117,4349.9,4349.8,0.512]
[1757546022047,0.4052,4349.9,4349.8,0.512]
[1757546022654,0.4052,4349.9,4349.8,0.7216]
[1757546023656,0.6117,4349.9,4349.8,0.7216]
[1757546023858,0.4052,4349.9,4349.8,0.7216]
[1757546027961,0.2065,4350.7,4349.9,0.3057]
[1757546028163,0.1974,4350.1,4350.0,0.8463]
[1757546030860,0.4052,4350.1,4350.0,0.8463]
[1757546033762,0.6117,4350.1,4350.0,0.8463]
[1757546034061,0.4052,4350.1,4350.0,0.8463]
[1757546034562,0.6116,4350.1,4350.0,0.6367]
[1757546035355,0.4052,4350.1,4350.0,0.6367]
[1757546036469,0.4052,4350.1,4350.0,0.8463]
[1757546049070,0.2064,4350.7,4350.0,0.5406]
[1757546049272,0.65196,4350.7,4350.6,0.4979]
[1757546049462,1.28339514,4350.7,4350.6,0.4979]
[1757546053271,1.28339514,4350.7,4350.6,0.2947]
[1757546053867,1.28339514,4350.7,4350.6,0.25017648]
[1757546054172,1.28339514,4350.7,4350.0,0.1247]
[1757546054371,0.2157,4350.1,4350.0,0.5385]
[1757546055861,0.2157,4350.1,4350.0,0.8332]
[1757546059877,0.6687,4350.1,4350.0,0.8332]
[1757546060782,0.4178,4350.1,4350.0,0.8332]
[1757546061589,0.231,4350.3,4350.0,0.8332]
[1757546061786,0.4467,4350.3,4350.2,0.7085]
[1757546062288,0.6488,4350.3,4350.2,0.7085]
[1757546065389,0.8997,4350.3,4350.2,0.7085]
[1757546069793,0.8997,4350.3,4350.2,0.4979]
[1757546070499,0.8997,4350.3,4350.2,0.2947]
[1757546070786,0.2103,4349.7,4349.6,0.7342]
[1757546080900,0.4169,4350.1,4350.0,0.6548]
[1757546081103,0.4169,4350.1,4350.0,0.8528]
[1757546081602,0.6685,4350.7,4350.6,0.5217]
[1757546081801,1.78739586,4350.7,4350.6,0.5217]
[1757546082902,1.55753586,4350.7,4350.6,0.5217]
[1757546084302,1.30593586,4350.7,4350.6,0.7342]
[1757546084495,1.30592728,4350.7,4350.6,0.7342]
[1757546084991,1.55752728,4350.7,4350.6,0.7342]
[1757546089001,1.55752728,4350.7,4350.6,0.3237]
[1757546089207,5.55752728,4350.7,4349.5,0.1247]
[1757546089510,0.3032,4350.4,4349.5,0.1247]
[1757546089694,0.122,4350.5,4349.5,0.1247]
[1757546089695,0.7201,4350.2,4350.1,0.198]
[1757546089900,1.37812728,4350.2,4349.5,0.1247]
[1757546090101,0.65810779,4350.1,4349.5,0.1247]
[1757546090297,0.5135,4349.6,4349.5,0.5352]
[1757546091304,0.5135,4349.6,4349.5,0.8589]
[1757546094098,0.7201,4349.6,4349.5,0.8589]
[1757546099511,0.7201,4349.6,4349.5,0.7342]
[1757546100507,0.5395,4349.7,4349.6,0.7175]
[1757546101014,0.7365,4349.7,4349.6,0.7175]
[1757546102513,0.7365,4349.7,4349.6,0.5115]
[1757546103016,0.7365,4349.7,4349.1,0.2986]
[1757546112612,0.65892675,4349.6,4348.6,0.2986]
[1757546112815,0.7365,4348.7,4348.6,0.7175]
[1757546113216,0.2176,4348.7,4348.6,0.7175]
[1757546118422,0.7365,4348.7,4348.6,0.7175]
[1757546118722,0.2176,4348.7,4348.6,0.7175]
[1757546119914,0.1258,4349.5,4348.6,0.7175]
[1757546120112,0.97981711,4349.4,4349.0,0.1179]
[1757546120317,0.5395,4349.4,4349.3,0.7175]
[1757546120715,1.19732499,4349.4,4349.3,0.7175]
[1757546121231,0.7705,4349.9,4349.8,0.7175]
[1757546121427,1.62528188,4349.9,4349.8,0.7175]
[1757546122322,1.62528188,4349.9,4349.8,0.5115]
[1757546122523,1.62528188,4349.9,4349.6,0.2986]
[1757546122824,0.7365,4349.7,4349.6,0.5115]
[1757546123024,1.39428188,4349.7,4349.6,0.5115]
[1757546126730,1.39428188,4349.7,4349.6,0.7175]
[1757546130530,1.39428188,4349.7,4349.6,0.5115]
[1757546131632,0.65778188,4349.7,4349.6,0.7287]
[1757546131934,0.6976,4350.4,4350.3,0.7512]
[1757546132126,1.35577768,4350.4,4350.3,0.7512]
[1757546133333,5.35577768,4350.4,4348.5,0.1186]
[1757546133525,0.88808768,4350.3,4348.0,0.1293]
[1757546133727,0.1221,4350.0,4348.0,0.1293]
[1757546134026,0.2956,4349.8,4348.1,0.22993]
[1757546134230,0.1221,4349.5,4348.1,0.22993]
[1757546134424,0.1221,4349.5,4348.0,0.1293]
[1757546134425,0.6976,4349.4,4349.3,0.4326]
[1757546134728,0.6976,4349.4,4348.5,0.1186]
[1757546134926,0.6976,4349.4,4348.0,0.1293]
[1757546135125,0.6976,4349.4,4348.1,0.22995]
[1757546135328,0.6976,4349.4,4348.2,0.3186]
[1757546135631,0.2956,4349.3,4348.3,0.3186]
[1757546135934,0.2956,4349.4,4348.4,0.3186]
[1757546136136,0.2956,4349.4,4348.5,0.3186]
[1757546136531,0.2956,4349.4,4348.6,0.3186]
[1757546142531,0.6976,4349.4,4349.3,0.2154]
[1757546142726,0.6976,4349.4,4349.3,0.7512]
[1757546149241,0.6976,4349.4,4349.3,0.4326]
[1757546151145,1.35657215,4349.4,4349.3,0.4326]
[1757546152943,1.35657023,4349.4,4349.3,0.4326]
[1757546158556,0.6976,4349.4,4349.3,0.7291]
[1757546160366,0.3078,4349.9,4349.3,0.4326]
[1757546160667,1.38027291,4349.8,4349.7,0.7044]
[1757546160863,1.38027291,4349.8,4349.7,0.4079]
[1757546161359,1.38027291,4349.8,4349.7,0.2083]
[1757546164571,1.38027291,4349.8,4349.7,0.7044]
[1757546166468,1.38027291,4349.8,4349.7,0.4079]
[1757546174270,1.38027291,4349.8,4349.7,0.7044]
[1757546177079,1.38027291,4349.8,4349.7,0.2083]
[1757546177376,0.3078,4349.8,4349.7,0.9343]
[1757546177578,0.519,4349.8,4349.7,0.9343]
[1757546177780,0.519,4349.8,4349.7,0.7044]
[1757546178369,0.7214,4349.8,4349.7,0.7044]
[1757546186587,0.7214,4349.8,4349.7,0.4079]
[1757546186994,0.7214,4349.8,4349.7,0.7044]
[1757546187289,0.7214,4349.8,4349.7,0.7141]
[1757546190192,0.7214,4349.8,4349.7,0.205]
[1757546190491,0.7214,4349.8,4349.1,0.3053]
[1757546190786,0.2122,4349.3,4349.2,0.7141]
[1757546190991,0.5185,4349.3,4349.2,0.7141]
[1757546201499,0.1221,4350.0,4349.2,0.4088]
[1757546201696,0.7364,4349.9,4349.8,0.205]
[1757546203401,0.7364,4349.9,4349.5,0.3053]
[1757546205806,0.7364,4349.9,4349.0,0.0389]
[1757546205997,0.7364,4349.9,4349.1,0.3053]
[1757546206196,0.7364,4349.9,4349.8,0.205]
[1757546222017,0.7364,4349.9,4349.1,0.3038]
[1757546222218,0.2001,4349.3,4349.2,0.72]
[1757546222516,0.5151,4349.3,4349.2,0.72]
[1757546223021,0.1221,4350.0,4348.1,0.3038]
[1757546223022,0.315,4348.9,4348.1,0.3038]
[1757546223206,0.5151,4348.3,4348.2,1.18093999]
[1757546223405,0.5151,4348.3,4348.2,0.72]
[1757546223611,0.7212,4348.3,4348.2,0.4162]
[1757546224117,0.7212,4348.3,4348.2,0.72]
[1757546225919,0.7212,4348.3,4348.2,0.4162]
[1757546226316,0.7212,4348.3,4348.2,0.1995]
[1757546226917,0.7212,4348.3,4348.2,0.72]
[1757546233218,0.7212,4348.3,4348.2,0.1995]
[1757546233419,0.1296,4348.0,4347.7,0.3038]
[1757546233619,0.4062,4347.9,4347.8,0.4305]
[1757546233917,0.7212,4347.9,4347.8,0.951]
[1757546234821,0.1296,4348.5,4347.8,0.951]
[1757546235126,0.8508,4348.5,4348.4,0.1995]
[1757546236924,0.8508,4348.5,4348.4,0.5033]
[1757546237120,0.8508,4348.5,4348.4,0.1995]
[1757546241024,0.5151,4348.5,4348.4,0.72]
[1757546241223,0.315,4348.5,4348.4,0.72]
[1757546241732,0.5151,4348.5,4348.4,0.72]
[1757546242929,0.315,4348.5,4348.4,0.72]
[1757546243122,0.1296,4349.0,4348.5,0.3038]
[1757546243322,0.7212,4348.9,4348.8,0.4162]
[1757546243523,0.7212,4348.9,4348.8,0.72]
[1757546244931,0.7212,4348.9,4348.8,0.4162]
[1757546245132,0.7212,4348.9,4348.8,0.1995]
[1757546247643,0.7212,4348.9,4348.5,0.3038]
[1757546248635,0.7212,4348.9,4348.0,0.1213]